bitfinex-derivatives/quotes_ETHF0:USTF0_20251204
["timestamp","ask_amount","ask_price","bid_price","bid_amount"]
[1764813908572,57.84153735,3205.8,3205.7,5.6314]
[1764813908776,12.72,3205.6,3205.5,12.495]
[1764813908973,13.83061473,3205.6,3205.5,12.495]
[1764813909890,1.11061473,3205.6,3205.5,27.9836]
[1764813910184,40.80312262,3205.8,3205.7,11.9522]
[1764813910577,40.80312262,3205.8,3205.7,12.10814]
[1764813911380,15.9278,3206.6,3206.5,5.6314]
[1764813911783,56.7278,3206.6,3206.5,5.6314]
[1764813912282,44.0118257,3206.6,3206.4,24.4442]
[1764813912486,44.0118257,3206.6,3206.5,11.95494131]
[1764813914386,44.0118257,3206.6,3206.5,5.63414131]
[1764813914693,44.0118257,3206.6,3206.5,0.00274131]
[1764813916184,44.0118257,3206.6,3206.5,4.131e-05]
[1764813916390,12.72,3206.1,3206.0,3.2078]
[1764813917393,12.72,3206.1,3206.0,3.2100371]
[1764813918191,12.72,3206.1,3206.0,0.0022371]
[1764813920697,53.52,3206.1,3206.0,0.0022371]
[1764813924097,0.0040257,3206.6,3206.5,15.4886]
[1764813924398,3.2078,3207.3,3206.6,0.15589]
[1764813924598,40.8,3207.2,3207.1,5.6314]
[1764813924996,40.8,3207.2,3206.7,12.477]
[1764813925399,40.80273175,3207.2,3206.7,12.477]
[1764813927006,40.80273175,3207.2,3207.1,11.9522]
[1764813929299,9.2713,3207.8,3207.7,11.9522]
[1764813929803,44.0078,3207.8,3207.7,11.9522]
[1764813930205,44.01011088,3207.8,3207.7,11.9522]
[1764813930900,44.01011088,3207.8,3207.6,12.469]
[1764813930901,6.0635,3207.7,3207.6,12.469]
[1764813931093,12.72,3207.7,3207.6,12.469]
[1764813931804,44.01011088,3207.8,3206.9,2.81136951]
[1764813931805,12.72,3207.1,3207.0,15.4886]
[1764813931998,12.72,3207.0,3206.9,8.8392]
[1764813932203,12.72,3207.0,3206.9,21.3042]
[1764813932600,12.72,3207.0,3206.9,3.2078]
[1764813934207,14.8063,3207.0,3206.9,3.2078]
[1764813934910,11.4232,3206.6,3206.5,12.462]
[1764813935307,11.4232,3206.6,3206.5,18.081]
[1764813935503,5.4832,3206.6,3206.5,24.0457]
[1764813936106,0.00465914,3206.9,3206.5,27.3765]
[1764813936310,5.48785914,3206.9,3206.8,11.5837]
[1764813936510,0.00465914,3206.9,3206.8,11.5837]
[1764813937210,5.48785914,3206.9,3206.8,11.5837]
[1764813938404,0.00465914,3206.9,3206.8,11.5837]
[1764813939813,14.631,3207.4,3207.3,11.5837]
[1764813940205,11.4232,3207.1,3207.0,8.9498]
[1764813940409,52.2232,3207.1,3207.0,5.619]
[1764813940608,52.2232,3207.1,3207.0,11.5837]
[1764813941211,52.2232,3207.1,3207.0,5.619]
[1764813941605,52.2232,3207.1,3206.9,0.15588]
[1764813941815,11.4232,3207.0,3206.9,11.73958]
[1764813942606,5.4832,3207.0,3206.9,11.5837]
[1764813943305,40.8,3207.1,3207.0,14.9145]
[1764813943712,40.8,3207.1,3207.0,15.07038]
[1764813947011,14.3896,3207.5,3207.4,11.1586]
[1764813947216,14.3896,3207.5,3207.4,23.6046]
[1764813947425,55.1896,3207.5,3207.4,23.6046]
[1764813948017,49.491,3207.5,3207.4,23.6046]
[1764813948215,46.2832,3207.5,3207.4,23.6046]
[1764813948608,40.8,3207.5,3207.4,23.76046]
[1764813949118,5.4389,3209.0,3208.0,3.46813]
[1764813949314,1.10627376,3208.9,3208.2,3.21247669]
[1764813949610,40.8,3208.8,3208.7,11.2341]
[1764813949816,3.2078,3209.4,3208.8,0.15579]
[1764813950016,3.21066597,3209.4,3208.9,2.50251842]
[1764813950917,40.8,3209.3,3209.2,5.6945]
[1764813951916,40.8,3209.3,3209.2,11.2341]
[1764813952117,40.8,3209.3,3209.2,11.38987]
[1764813952417,40.8,3209.3,3209.2,0.15577]
[1764813952612,40.8,3209.3,3208.8,11.23661537]
[1764813952613,5.5193,3208.9,3208.8,11.23661537]
[1764813952822,5.5193,3208.9,3208.8,23.68061537]
[1764813953214,5.5193,3208.9,3208.8,11.23661537]
[1764813953410,40.8,3209.3,3208.8,23.67961537]
[1764813953719,11.2179,3209.2,3209.1,8.9023]
[1764813953919,11.2179,3209.2,3209.1,3.2078]
[1764813954824,11.2179,3208.9,3208.8,18.14001537]
[1764813955124,11.2179,3208.9,3208.8,0.00251537]
[1764813955323,11.2179,3208.9,3208.8,12.44151537]
[1764813956423,11.2179,3208.9,3208.8,0.00251537]
[1764813959519,11.2179,3208.3,3208.2,3.21247669]
[1764813960226,52.0179,3208.3,3208.2,3.21247669]
[1764813960527,52.0179,3208.3,3208.2,3.21571338]
[1764813964828,52.0179,3208.3,3208.2,0.00791338]
[1764813965925,40.8,3208.3,3208.2,13.7891318]
[1764813966129,40.8,3208.3,3208.2,0.00791338]
[1764813972035,10.6254,3207.9,3207.8,3.2078]
[1764813972840,10.6254,3207.9,3207.8,3.21094335]
[1764813974438,10.6254,3207.9,3207.8,0.00314335]
[1764813975437,51.4254,3207.9,3207.8,0.00314335]
[1764813983541,51.4254,3207.9,3207.5,0.00467669]
[1764813983542,10.6254,3207.6,3207.5,0.00467669]
[1764813984140,51.4254,3207.6,3207.5,0.00467669]
[1764813984444,13.7814,3207.0,3206.9,3.2078]
[1764813984639,13.78512004,3207.0,3206.9,3.21049151]
[1764813985745,13.78512004,3207.0,3206.9,8.63829151]
[1764813985933,13.78512004,3207.0,3206.9,3.21049151]
[1764813989648,54.58512004,3207.0,3206.9,3.21049151]
[1764813991149,54.58512004,3207.0,3206.9,0.00269151]
[1764813995954,54.58512004,3207.0,3206.6,0.00467669]
[1764813995955,10.5188,3206.7,3206.6,0.00467669]
[1764813996858,10.5188,3206.7,3206.6,0.00766948]
[1764813997052,43.96439673,3207.0,3206.6,0.00766948]
[1764813997053,40.80839673,3207.0,3206.9,9.99]
[1764813997356,40.80839673,3207.0,3206.9,4.7336]
[1764813997556,42.27819673,3207.0,3206.9,4.7336]
[1764813997751,10.1853,3206.9,3206.8,7.9414]
[1764813997957,10.1853,3206.9,3206.8,3.2078]
[1764813998956,42.27819673,3207.0,3206.6,0.00766948]
[1764813998957,10.1853,3206.7,3206.6,7.94906948]
[1764813999854,10.1853,3206.7,3206.6,3.21546948]
[1764814000455,10.1853,3206.7,3206.6,0.00766948]
[1764814002956,10.1853,3206.7,3206.6,4.84036948]
[1764814003659,10.1853,3206.7,3206.6,0.00766948]
[1764814012364,10.1853,3206.7,3206.6,4.84036948]
[1764814013365,10.1853,3206.7,3206.6,0.00766948]
[1764814013663,10.1853,3206.7,3206.6,9.76526948]
[1764814014066,10.1853,3206.7,3206.6,4.84036948]
[1764814014267,10.1853,3206.7,3206.6,0.00766948]
[1764814015575,10.1853,3206.7,3206.6,4.84036948]
[1764814016267,10.1853,3206.7,3206.0,6.4573]
[1764814016268,9.7442,3206.1,3206.0,2.23160861]
[1764814016469,9.7442,3205.4,3205.3,9.7576]
[1764814016676,50.5442,3205.4,3205.3,9.7576]
[1764814017375,50.5442,3205.4,3205.3,9.76097273]
[1764814017877,40.8,3205.4,3205.3,9.76097273]
[1764814018675,40.8,3205.4,3205.3,0.00337273]
[1764814020785,40.8,3205.4,3204.0,10.4151587]
[1764814020786,9.7442,3204.1,3204.0,10.4151587]
[1764814020977,9.7442,3204.1,3204.0,22.97786403]
[1764814021582,50.5442,3204.1,3204.0,22.97786403]
[1764814021878,50.54688073,3204.1,3204.0,22.98124746]
[1764814022184,50.54688073,3204.1,3204.0,12.43438343]
[1764814022577,50.54688073,3204.1,3204.0,9.89248356]
[1764814024887,50.54688073,3204.1,3204.0,14.72518356]
[1764814025087,50.54688073,3204.1,3204.0,9.89248356]
[1764814027581,50.54688073,3204.1,3204.0,0.00338343]
[1764814027781,50.54688073,3204.1,3203.7,0.00467669]
[1764814028092,9.5609,3203.3,3203.2,16.08846]
[1764814028694,4.9287,3203.3,3203.2,16.08846]
[1764814028893,9.5609,3203.3,3203.2,16.09189772]
[1764814031290,9.5609,3203.3,3203.2,15.93583772]
[1764814031492,9.5609,3203.3,3203.2,12.72803772]
[1764814032394,4.9287,3203.3,3203.2,12.72803772]
[1764814033087,4.9287,3203.3,3202.6,10.35741117]
[1764814033088,12.4705,3203.0,3202.5,6.0348]
[1764814033289,2.5109,3203.5,3203.2,9.6966]
[1764814033290,12.7687,3203.3,3203.2,9.6966]
[1764814033488,9.5609,3203.1,3203.0,12.8856]
[1764814033693,50.3609,3203.1,3203.0,8.1977]
[1764814034093,50.3609,3203.1,3203.0,0.00338049]
[1764814034293,50.3609,3203.1,3203.0,5.01208049]
[1764814035190,50.3609,3203.1,3203.0,0.00338049]
[1764814037991,9.5609,3202.8,3202.7,0.00311776]
[1764814038195,12.7687,3202.8,3202.7,0.00311776]
[1764814039101,12.7687,3202.8,3202.7,0.0060599]
[1764814039698,12.7687,3202.8,3201.6,3.2078]
[1764814039899,3.2078,3202.4,3201.6,12.9044]
[1764814040092,4.9287,3201.7,3201.6,12.9044]
[1764814040299,50.3609,3201.7,3201.6,12.9044]
[1764814040500,45.7287,3201.7,3201.6,12.9044]
[1764814040899,45.73233745,3201.7,3201.6,12.90666748]
[1764814041498,45.73233745,3201.7,3201.6,9.69886748]
[1764814041695,45.73233745,3201.7,3201.6,5.01096748]
[1764814041893,45.73233745,3201.7,3201.6,9.69886748]
[1764814042796,3.2078,3202.2,3201.9,9.6966]
[1764814042998,3.2078,3202.2,3201.6,9.85500748]
[1764814042999,8.1365,3202.2,3202.1,9.6966]
[1764814043403,12.7687,3202.2,3202.1,9.6966]
[1764814043903,53.57239877,3202.2,3202.1,9.6966]
[1764814044803,48.94019877,3202.2,3202.1,9.6966]
[1764814045697,48.94019877,3202.2,3202.1,5.0087]
[1764814045897,44.01149877,3202.2,3202.1,9.6966]
[1764814048203,40.80369877,3202.2,3202.1,9.6966]
[1764814048406,40.80369877,3202.2,3202.1,11.30533517]
[1764814048702,40.80369877,3202.2,3202.1,9.6966]
[1764814051206,0.00468428,3202.5,3202.4,9.6966]
[1764814051405,0.00468428,3202.5,3202.4,23.74633517]
[1764814051606,5.0464,3203.0,3202.9,9.6966]
[1764814051809,14.6073,3203.0,3202.9,6.61743517]
[1764814052205,55.4073,3203.0,3202.9,6.61743517]
[1764814052412,55.40971507,3203.0,3202.9,11.30533517]
[1764814052908,50.77751507,3203.0,3202.9,11.30533517]
[1764814053517,50.77751507,3203.0,3202.9,6.61743517]
[1764814054013,47.56971507,3203.0,3202.9,6.61743517]
[1764814054518,47.56971507,3203.0,3202.9,11.94083517]
[1764814056821,0.00468428,3203.3,3203.2,11.0022]
[1764814057011,13.6637,3203.8,3203.7,11.0022]
[1764814057213,54.4637,3203.8,3203.7,11.0022]
[1764814057524,6.9208,3204.0,3203.9,11.0022]
[1764814057718,6.92370815,3204.0,3203.9,23.44580022]
[1764814058018,11.98260815,3204.0,3203.9,23.44580022]
[1764814058221,11.98260815,3204.0,3203.9,0.00360022]
[1764814058418,10.4559,3203.7,3203.6,19.83321501]
[1764814059311,10.4559,3203.7,3203.6,25.15966652]
[1764814059516,5.397,3203.7,3203.6,25.15966652]
[1764814059913,10.641,3203.7,3203.6,25.15966652]
[1764814060315,10.641,3203.7,3203.6,23.44525151]
[1764814060516,10.641,3203.7,3203.6,18.12185151]
[1764814060920,10.641,3203.7,3203.6,0.00305151]
[1764814061119,13.7153,3203.0,3202.9,5.40808428]
[1764814061326,13.7153,3203.0,3202.9,12.44268428]
[1764814061520,54.5153,3203.0,3202.9,12.44268428]
[1764814061720,54.5153,3203.0,3202.9,17.84608428]
[1764814062020,54.5153,3203.0,3202.9,12.44268428]
[1764814062326,54.5153,3203.0,3202.9,12.4465651]
[1764814062621,10.5133,3202.2,3202.1,14.1862]
[1764814062821,10.5133,3202.1,3202.0,5.55952]
[1764814063019,10.5133,3202.1,3202.0,17.99752]
[1764814063622,10.5133,3202.1,3202.0,17.99974929]
[1764814063825,10.5133,3202.1,3202.0,12.59634929]
[1764814064621,10.5133,3202.1,3202.0,0.00222929]
[1764814065420,51.3133,3202.1,3202.0,0.00222929]
[1764814067129,51.3133,3202.1,3202.0,10.98062929]
[1764814067330,51.3133,3202.1,3202.0,5.40562929]
[1764814067730,51.3133,3202.1,3202.0,0.00222929]
[1764814067932,13.7153,3202.0,3201.9,12.437]
[1764814068727,13.7153,3202.0,3201.9,12.43444645]
[1764814068929,13.7153,3202.0,3201.9,12.43712552]
[1764814070633,13.7153,3202.0,3201.9,0.00267907]
[1764814070826,13.7153,3202.0,3201.9,5.40607907]
[1764814071222,13.7153,3202.0,3201.9,0.00267907]
[1764814071437,13.7153,3202.0,3201.9,5.40607907]
[1764814071634,13.7153,3202.0,3201.9,10.98107907]
[1764814072532,44.0078,3202.1,3202.0,10.9784]
[1764814072727,8.4771,3202.1,3202.0,13.48544722]
[1764814073132,13.7211,3202.1,3202.0,2.50704722]
[1764814073333,54.5211,3202.1,3202.0,7.91044722]
[1764814074240,54.5211,3202.1,3202.0,13.48544722]
[1764814074637,13.7153,3202.0,3201.9,5.40607907]
[1764814074943,13.7153,3202.0,3201.9,0.00267907]
[1764814077041,13.2153,3202.0,3201.9,0.00267907]
[1764814078235,13.2153,3202.0,3201.9,5.40607907]
[1764814080142,13.2153,3202.0,3201.9,10.98107907]
[1764814081145,13.2153,3202.0,3201.9,5.40607907]
[1764814081844,13.2153,3202.0,3201.9,10.98107907]
[1764814082432,13.2153,3202.0,3201.9,12.69717171]
[1764814082941,7.9713,3202.0,3201.9,12.69717171]
[1764814083146,40.8,3202.1,3202.0,10.9784]
[1764814083349,13.7172,3202.9,3202.8,5.1143]
[1764814083647,8.4102,3202.9,3202.8,12.04959264]
[1764814083837,49.2102,3202.9,3202.8,12.04959264]
[1764814084438,49.2102,3202.9,3202.8,12.84142157]
[1764814084742,44.0078,3202.9,3202.8,12.84142157]
[1764814084937,0.00468428,3203.2,3203.1,10.3335]
[1764814085443,0.00468428,3203.2,3203.1,10.48957]
[1764814087041,10.51408428,3203.2,3202.8,3.2078]
[1764814087248,13.4097,3202.0,3201.9,3.21047907]
[1764814087552,10.5094,3201.1,3201.0,3.2078]
[1764814087744,2.9003,3201.5,3201.0,13.5413]
[1764814087940,13.4097,3201.5,3201.4,5.1143]
[1764814088247,5.2024,3201.2,3201.1,18.81742157]
[1764814088546,46.00516135,3201.2,3201.1,18.8203753]
[1764814088742,40.80276135,3201.2,3201.1,18.8203753]
[1764814088940,0.00276135,3201.2,3201.1,18.8203753]
[1764814091245,0.00276135,3201.2,3201.1,18.9765353]
[1764814091852,0.00276135,3201.2,3201.1,23.08556079]
[1764814092047,3.2078,3202.8,3202.4,10.3335]
[1764814092346,5.2024,3202.8,3202.7,12.84142157]
[1764814092541,2.9003,3203.5,3203.1,10.3335]
[1764814092738,5.2024,3203.2,3203.1,10.3335]
[1764814092940,10.51264346,3203.2,3203.1,12.437]
[1764814094152,10.51264346,3203.2,3203.1,17.5513]
[1764814094950,0.00324346,3203.2,3203.1,22.7705]
[1764814095148,0.00468428,3203.5,3203.4,10.3335]
[1764814095344,5.20708428,3203.5,3203.4,10.3335]
[1764814096349,0.00760453,3203.5,3203.4,10.33719468]
[1764814096752,13.7172,3204.4,3204.3,5.1143]
[1764814097053,3.2078,3204.4,3204.3,25.27742157]
[1764814097749,54.52061498,3204.4,3204.3,20.05822157]
[1764814097945,51.31281498,3204.4,3204.3,12.436]
[1764814098150,13.4097,3204.0,3203.9,5.1143]
[1764814098352,13.4097,3204.0,3203.9,16.3623]
[1764814099345,10.5094,3204.0,3203.9,21.5815]
[1764814099745,5.2024,3204.0,3203.9,21.5815]
[1764814102356,4.2024,3204.0,3203.9,21.5815]
[1764814102757,9.5094,3204.0,3203.9,21.5815]
[1764814103163,13.4097,3203.5,3203.4,0.00369468]
[1764814103848,54.2097,3203.5,3203.4,0.00369468]
[1764814107054,54.2097,3203.5,3203.4,10.33719468]
[1764814107259,54.2097,3203.5,3203.4,5.11799468]
[1764814107459,54.2097,3203.5,3203.4,0.00369468]
[1764814112665,57.4175,3203.5,3203.4,0.00369468]
[1764814113666,9.9855,3203.1,3203.0,12.32503772]
[1764814114364,9.9855,3203.1,3203.0,22.47243772]
[1764814114565,9.9855,3203.1,3203.0,22.47624443]
[1764814116175,46.9081,3203.5,3203.4,4.9755]
[1764814116471,9.6664,3203.1,3203.0,22.47624443]
[1764814116664,9.6664,3203.1,3203.0,17.30434443]
[1764814117864,9.6664,3203.1,3203.0,12.32884443]
[1764814119166,9.6664,3203.1,3203.0,17.30434443]
[1764814119374,9.6664,3203.1,3203.0,22.32374443]
[1764814121280,4.8833,3203.1,3203.0,22.32374443]
[1764814121572,4.3833,3203.1,3203.0,22.32374443]
[1764814121972,9.089,3203.1,3203.0,22.32374443]
[1764814122968,9.089,3203.1,3203.0,0.00380671]
[1764814123572,7.7564,3202.5,3202.4,9.9434]
[1764814123770,3.2078,3202.8,3202.7,9.9434]
[1764814124179,44.0078,3202.8,3202.7,22.3734]
[1764814124777,44.0078,3202.8,3202.7,22.37563129]
[1764814128369,40.8,3202.8,3202.7,22.37563129]
[1764814128570,40.8,3202.8,3202.7,25.18686468]
[1764814129768,0.00468428,3203.1,3202.7,25.18686468]
[1764814129974,12.66483812,3203.6,3203.5,9.9434]
[1764814130168,3.06413812,3203.6,3203.5,12.8646]
[1764814130373,15.7088,3204.0,3203.5,5.73243339]
[1764814130574,4.895,3203.6,3203.5,15.67583339]
[1764814131478,40.80468428,3203.9,3203.8,4.924]
[1764814131774,40.80468428,3203.9,3203.8,9.9434]
[1764814134580,40.80468428,3203.9,3203.8,4.924]
[1764814134990,40.80468428,3203.9,3203.8,9.9434]
[1764814136775,40.80468428,3203.9,3203.8,4.924]
[1764814137374,40.80468428,3203.9,3203.8,9.9434]
[1764814139888,9.6007,3203.6,3203.5,5.08005]
[1764814140089,40.80468428,3203.9,3203.8,9.9434]
[1764814141690,40.80468428,3203.9,3203.8,12.427]
[1764814143792,9.8925,3203.4,3203.3,3.36385]
[1764814143989,9.8925,3203.4,3203.3,12.11185]
[1764814145386,50.6925,3203.4,3203.3,21.40945]
[1764814145980,50.6925,3203.4,3203.3,16.66035]
[1764814146383,50.6925,3203.4,3203.3,12.11185]
[1764814147086,50.6925,3203.4,3203.3,16.66035]
[1764814148392,50.6925,3203.4,3203.3,21.40945]
[1764814149194,40.8,3203.4,3203.3,21.40945]
[1764814151597,40.8,3203.4,3202.7,0.00223129]
[1764814151598,2.7678,3203.0,3202.8,7.7563]
[1764814151793,40.8,3203.4,3202.8,12.5054]
[1764814152000,40.8,3203.4,3203.3,12.26489339]
[1764814152196,9.42988428,3203.9,3203.8,4.5485]
[1764814152402,9.42988428,3203.9,3203.8,21.7236]
[1764814152595,9.42988428,3203.9,3203.8,16.9745]
[1764814152792,50.22988428,3203.9,3203.8,16.9745]
[1764814153300,50.22988428,3203.9,3203.8,12.426]
[1764814158812,50.22988428,3203.9,3203.8,16.9745]
[1764814159508,50.22988428,3203.9,3203.8,21.7236]
[1764814160406,50.22988428,3203.9,3203.8,16.9745]
[1764814160709,12.63641498,3204.4,3204.3,9.2976]
[1764814161106,45.23111498,3204.4,3204.3,12.66141]
[1764814161308,40.80341498,3204.4,3204.3,12.66141]
[1764814162214,0.00341498,3204.4,3204.3,12.66141]
[1764814162509,4.43238428,3204.7,3204.6,9.2976]
[1764814162716,0.00468428,3204.7,3204.6,24.68882339]
[1764814163512,0.00814013,3204.7,3204.6,24.68882339]
[1764814164607,12.633,3205.4,3205.3,9.2976]
[1764814164809,12.633,3205.4,3205.3,16.9715]
[1764814165002,53.433,3205.4,3205.3,16.9715]
[1764814165609,53.43701155,3205.4,3205.3,16.97454824]
[1764814166022,53.43701155,3205.4,3205.3,0.00304824]
[1764814166315,53.43701155,3205.4,3205.0,12.422]
[1764814166316,9.4252,3205.1,3205.0,12.422]
[1764814167218,9.4252,3205.1,3205.0,12.42569822]
[1764814167518,9.4252,3205.1,3205.0,0.00369822]
[1764814168419,50.2252,3205.1,3205.0,0.00369822]
[1764814170720,53.433,3205.1,3205.0,0.00369822]
[1764814171919,52.933,3205.1,3205.0,0.00369822]
[1764814172917,44.0078,3205.1,3205.0,4.55219822]
[1764814173122,40.8,3205.1,3205.0,9.30129822]
[1764814174022,40.8,3205.1,3205.0,0.00369822]
[1764814174619,0.00401155,3205.4,3205.0,10.23629822]
[1764814174922,8.4698,3205.1,3205.0,10.23629822]
[1764814175120,49.2698,3205.1,3205.0,10.23629822]
[1764814175314,49.2698,3205.1,3205.0,8.60449822]
[1764814176016,49.2698,3205.1,3205.0,3.96349822]
[1764814176218,49.2698,3205.1,3205.0,8.60449822]
[1764814177721,49.2698,3205.1,3205.0,3.96349822]
[1764814179124,49.2698,3205.1,3205.0,0.00369822]
[1764814179515,52.4776,3205.1,3205.0,0.00369822]
[1764814184128,51.9776,3205.1,3205.0,0.00369822]
[1764814184628,51.9776,3205.1,3205.0,3.78829822]
[1764814186235,51.9776,3205.1,3205.0,0.00369822]
[1764814188423,47.4148,3205.1,3205.0,10.06629822]
[1764814189130,47.4148,3205.1,3205.0,10.22226822]
[1764814189329,47.4148,3205.1,3205.0,7.95186822]
[1764814190034,44.207,3205.1,3205.0,7.95186822]
[1764814190727,44.207,3205.1,3205.0,3.94426822]
[1764814190926,44.207,3205.1,3205.0,0.15966822]
[1764814191127,44.207,3205.1,3205.0,3.94426822]
[1764814191836,44.207,3205.1,3205.0,7.95186822]
[1764814193029,44.207,3205.1,3205.0,3.94426822]
[1764814193231,44.207,3205.1,3205.0,0.15966822]
[1764814193232,47.4148,3205.1,3205.0,0.15966822]
[1764814193834,47.4148,3205.1,3205.0,3.94426822]
[1764814194534,47.4148,3205.1,3205.0,5.65712666]
[1764814194934,47.4148,3205.1,3205.0,0.15966822]
[1764814195331,47.4148,3205.1,3205.0,0.00369822]
[1764814195539,48.20121257,3205.1,3205.0,0.00369822]
[1764814198233,48.55600632,3205.1,3205.0,0.00369822]
[1764814198433,48.05600632,3205.1,3205.0,0.00369822]
[1764814201343,48.05600632,3205.1,3204.7,1.71285844]
[1764814201640,7.8242,3204.1,3204.0,0.00468428]
[1764814201840,7.8242,3204.1,3204.0,1.71754272]
[1764814202040,48.6242,3204.1,3204.0,1.71754272]
[1764814202337,44.6749,3204.1,3204.0,0.00468428]
[1764814202542,44.6749,3204.1,3204.0,0.00782137]
[1764814203539,44.6749,3204.1,3204.0,1.72067981]
[1764814205742,44.6749,3204.1,3204.0,0.00782137]
[1764814208546,44.6749,3204.1,3204.0,7.61252137]
[1764814208948,44.6749,3204.1,3204.0,0.00782137]
[1764814210940,7.6087,3205.0,3204.9,3.7915]
[1764814211146,11.7703,3205.0,3204.9,1.71285844]
[1764814211451,11.7703,3205.0,3204.9,9.32445844]
[1764814211754,11.7703,3205.0,3204.9,5.50435844]
[1764814212757,10.9721,3205.0,3204.9,9.32445844]
[1764814212950,3.6027,3205.0,3204.9,9.32445844]
[1764814213454,7.7643,3205.0,3204.9,9.32445844]
[1764814213854,7.2643,3205.0,3204.9,9.32445844]
[1764814215153,7.2643,3205.0,3204.9,7.6116]
[1764814216156,40.8,3205.3,3205.2,7.6116]
[1764814216356,40.8,3205.3,3205.2,9.32445844]
[1764814216656,40.8,3205.3,3205.2,5.50435844]
[1764814217151,40.8,3205.3,3205.2,9.32445844]
[1764814217352,3.21181155,3205.4,3205.3,7.6116]
[1764814217558,6.81451155,3205.4,3205.3,7.6116]
[1764814217758,51.77611155,3205.4,3205.3,7.6116]
[1764814218455,51.77611155,3205.4,3205.3,3.7915]
[1764814218853,51.27611155,3205.4,3205.3,3.7915]
[1764814219758,51.27986835,3205.4,3205.3,3.7915]
[1764814220653,51.27986835,3205.4,3205.3,7.6116]
[1764814221060,51.27986835,3205.4,3205.3,3.7915]
[1764814221265,7.7643,3205.3,3205.2,5.50435844]
[1764814221961,7.7643,3205.3,3205.2,9.32445844]
[1764814223561,7.7643,3205.3,3205.2,5.50435844]
[1764814224059,7.7643,3205.3,3205.2,9.32445844]
[1764814225450,0.00309754,3205.7,3205.2,9.32445844]
[1764814225451,2.71465434,3205.9,3205.2,3.58167688]
[1764814225654,7.7643,3205.7,3205.6,7.6116]
[1764814225854,7.7643,3205.7,3205.6,9.32445844]
[1764814226260,7.7643,3205.7,3205.6,5.50435844]
[1764814226561,7.76653465,3205.7,3205.6,5.50435844]
[1764814226759,7.76653465,3205.7,3205.6,7.21721688]
[1764814227662,7.76653465,3205.7,3205.6,5.50435844]
[1764814227864,7.76653465,3205.7,3205.6,7.21721688]
[1764814228462,7.76653465,3205.7,3205.6,5.50435844]
[1764814228856,7.76653465,3205.7,3205.6,9.32445844]
[1764814229566,3.60493465,3205.7,3205.6,11.03731688]
[1764814230257,7.76653465,3205.7,3205.6,11.03731688]
[1764814230659,2.71465434,3205.9,3205.8,7.6116]
[1764814230859,1.6858,3206.5,3206.0,9.96732]
[1764814231155,9.4501,3206.5,3206.4,1.71285844]
[1764814231767,50.25252323,3206.5,3206.4,1.71548473]
[1764814233864,50.25252323,3206.5,3206.4,5.50698473]
[1764814234364,44.40512323,3206.5,3206.4,10.75784317]
[1764814236276,45.37552323,3206.5,3206.4,1.71548473]
[1764814237476,45.37552323,3206.5,3206.4,6.77444317]
[1764814237773,45.37552323,3206.5,3206.4,1.71548473]
[1764814238468,3.60512323,3206.5,3206.4,13.52024317]
[1764814238669,9.4838,3207.0,3206.9,3.3461]
[1764814238983,46.3433,3207.0,3206.9,1.71285844]
[1764814239168,46.3433,3207.0,3206.9,5.05895844]
[1764814239367,40.8,3207.0,3206.9,8.52845844]
[1764814239572,40.80344089,3207.0,3206.9,8.52845844]
[1764814240770,0.00344089,3207.0,3206.9,8.52845844]
[1764814241670,44.34544089,3207.0,3206.9,8.52845844]
[1764814241871,44.34544089,3207.0,3206.9,11.73625844]
[1764814242372,44.34544089,3207.0,3206.9,11.62687073]
[1764814242573,0.00344089,3207.0,3206.9,11.62687073]
[1764814242963,3.54544089,3207.0,3206.9,11.62687073]
[1764814243167,6.89594089,3207.0,3206.9,11.62687073]
[1764814243366,3.54544089,3207.0,3206.9,11.62687073]
[1764814243777,0.00344089,3207.0,3206.9,11.62687073]
[1764814244976,3.54544089,3207.0,3206.9,11.62687073]
[1764814245272,3.04544089,3207.0,3206.9,11.62687073]
[1764814245874,6.39594089,3207.0,3206.9,11.62687073]
[1764814246471,6.39953891,3207.0,3206.9,11.62687073]
[1764814246667,3.04903891,3207.0,3206.9,11.62687073]
[1764814246871,0.00359802,3207.0,3206.9,11.62687073]
[1764814247073,3.542,3207.6,3207.5,9.09465]
[1764814247273,10.1003,3208.0,3207.9,7.0001]
[1764814247472,3.542,3208.0,3207.9,10.20704146]
[1764814247673,40.8,3208.0,3207.9,10.36287146]
[1764814248077,40.80283345,3208.0,3207.9,8.75940073]
[1764814248386,8.8696,3208.5,3208.4,0.15581]
[1764814248681,12.0774,3208.5,3208.4,0.15581]
[1764814249272,12.08101708,3208.5,3208.4,0.15581]
[1764814249473,12.08101708,3208.5,3208.4,3.68641]
[1764814249677,12.08101708,3208.5,3208.4,0.15581]
[1764814250276,10.10391708,3208.5,3208.4,3.68641]
[1764814250482,6.75341708,3208.5,3208.4,7.15591]
[1764814250681,0.00361708,3208.5,3208.4,7.15591]
[1764814250885,3.54561708,3208.5,3208.4,7.15591]
[1764814251187,0.00361708,3208.5,3208.4,7.15591]
[1764814252179,0.00361708,3208.5,3208.4,7.19877012]
[1764814252686,10.1003,3208.9,3208.8,7.0001]
[1764814252884,6.7498,3208.9,3208.8,8.60357073]
[1764814253186,6.7498,3208.9,3208.8,8.64643085]
[1764814253491,10.1003,3208.9,3208.8,8.64643085]
[1764814253685,50.90391893,3208.9,3208.8,8.64995035]
[1764814254084,47.69611893,3208.9,3208.8,8.64995035]
[1764814254286,40.80361893,3208.9,3208.8,8.80574035]
[1764814254484,0.00361893,3208.9,3208.8,13.61701108]
[1764814255079,0.00361893,3208.9,3208.8,12.01354035]
[1764814255488,0.00361893,3208.9,3208.8,13.61701108]
[1764814255784,6.89611893,3208.9,3208.8,12.01354035]
[1764814255988,6.89611893,3208.9,3208.8,17.40744035]
[1764814256188,6.89611893,3208.9,3208.8,24.40754035]
[1764814256376,40.8,3209.7,3209.6,3.5306]
[1764814256574,6.8925,3209.6,3209.5,8.60357073]
[1764814256880,6.8925,3209.6,3209.5,10.54227073]
[1764814257388,3.54487629,3209.6,3209.5,10.74088085]
[1764814257976,6.89537629,3209.6,3209.5,10.74088085]
[1764814258182,6.89537629,3209.6,3209.5,1.80208085]